Workbook

Sheet Sheet1 (hidden)
B2: Availability of Baseline/No-Build Data Related to Crash and Roadway (Good, Sufficient, Limited):
B3: Good
B4: Sufficient
B5: Limited
B7: Complexity of Geometry (Simple, Complex):
B8: Simple
B9: Complex
B11: Type of Alternatives Analysis (CMFs, Predictive Method):
B12: CMFs
B13: Predictive Method
B15: Project Team Experience (Some, Considerable):
B16: Some
B17: Considerable

Sheet Input
B1: Safety Analysis Costing Tool | C1: Developed for:
B8: Summary of User Inputs:
A10: 1 | B10: Name of Study Area: | C10: Test
A11: 2 | B11: Number of Intersections: | C11: 4
A12: 3 | B12: Number of Ramp Terminal Intersections: | C12: 2
A13: 4 | B13: Number of Roadway/Freeway Segments: | C13: 4
A14: 5 | B14: Number of Ramp Segments: | C14: 2
A15: 6 | B15: Availability of Baseline/No-Build Data Related to Crash and Roadway (Good, Sufficient, Limited): | C15: Sufficient
A16: 7 | B16: Number of Analysis Years: | C16: 3
A17: 8 | B17: Complexity of Geometry (Simple, Complex): | C17: Simple
A18: 9 | B18: Type of Alternatives Analysis (Crash Modification Factors (CMFs), Predictive Method): | C18: CMFs
A19: 10 | B19: Project Team Experience (Some, Considerable): | C19: Some
B22: Note: This Safety Analysis Costing Tool is provided "as is" without warranty of any kind, or maintenance agreement.
E25: 5

Sheet Calculations
B1: =Input!B1 -> Safety Analysis Costing Tool | E1: Developed for:
A2: INPUT DATA
B4: Blue cells indicate numeric values that can be modified by the user.
A6: Summary of User Inputs:
B8: =Input!B10 -> Name of Study Area: | C8: =Input!C10 -> Test
B9: =Input!B11 -> Number of Intersections: | C9: =Input!C11 -> 4
B10: =Input!B12 -> Number of Ramp Terminal Intersections: | C10: =Input!C12 -> 2
B11: =Input!B13 -> Number of Roadway/Freeway Segments: | C11: =Input!C13 -> 4
B12: =Input!B14 -> Number of Ramp Segments: | C12: =Input!C14 -> 2
B13: =Input!B15 -> Availability of Baseline/No-Build Data Related to Crash and Roadway (Good, Sufficient, Limited): | C13: =Input!C15 -> Sufficient
B14: =Input!B16 -> Number of Analysis Years: | C14: =Input!C16 -> 3
B15: =Input!B17 -> Complexity of Geometry (Simple, Complex): | C15: =Input!C17 -> Simple
B16: =Input!B18 -> Type of Alternatives Analysis (Crash Modification Factors (CMFs), Predictive Method): | C16: =Input!C18 -> CMFs
B17: =Input!B19 -> Project Team Experience (Some, Considerable): | C17: =Input!C19 -> Some
A19: ASSUMPTIONS
A20: Number of labor hours per average intersection: | D20: Engineer/ | H20: Engineer/
C21: Manager | D21: Planner | E21: Technician | F21: Total | G21: Manager | H21: Planner | I21: Technician | J21: Total
A22: Project Task | C22: Hours | D22: Hours | E22: Hours | F22: Hours | G22: % of total | H22: % of total | I22: % of total | J22: Percent
B23: 1. Develop workplan, analysis plan, and project management | C23: 0.75 | D23: 1 | F23: =SUM(C23:E23) -> 1.75 | G23: =C23/F23 -> 0.4285714286 | H23: =D23/F23 -> 0.5714285714 | I23: =E23/F23 -> 0 | J23: =SUM(G23:I23) -> 1
B24: 2. Data Collection and Processing (compiling, gathering and organizing data) | C24: 0.25 | D24: 1 | E24: 1.5 | F24: =SUM(C24:E24) -> 2.75 | G24: =C24/F24 -> 0.09090909091 | H24: =D24/F24 -> 0.3636363636 | I24: =E24/F24 -> 0.5454545455 | J24: =SUM(G24:I24) -> 1
B25: 3. Existing Conditions Analysis | C25: 0.5 | D25: 1.25 | E25: 2 | F25: =SUM(C25:E25) -> 3.75 | G25: =C25/F25 -> 0.1333333333 | H25: =D25/F25 -> 0.3333333333 | I25: =E25/F25 -> 0.5333333333 | J25: =SUM(G25:I25) -> 1
B26: 4a.Alternatives Evaluation (CMFs) - Research, select and approval of apporpriate CMFs | C26: 0.5 | D26: 1 | E26: 1 | F26: 2.5 | G26: 0.2 | H26: 0.4 | I26: 0.4 | J26: 1
B27: 4a. Alternatives Evaluation (CMFs) - Apply CMFs and evaluate outcomes | C27: 0.5 | D27: 1 | E27: 1.5 | F27: =SUM(C27:E27) -> 3 | G27: =C27/F27 -> 0.1666666667 | H27: =D27/F27 -> 0.3333333333 | I27: =E27/F27 -> 0.5 | J27: =SUM(G27:I27) -> 1
B28: 4b. Alternatives Evaluation (Predictive) - Study area segmentation | F28: 0
B29: 4b. Alternatives Evaluation (Predictive) - Identify and Apply SPFs, CMFs and Local Calibration Factors | C29: 0.5 | D29: 1 | E29: 1.5 | F29: 3 | G29: =C29/F29 -> 0.1666666667 | H29: =D29/F29 -> 0.3333333333 | I29: =E29/F29 -> 0.5 | J29: 1
B30: 4b. Alternatives Evaluation (Predictive) - Evaluate Results | C30: 0.75 | D30: 1.5 | E30: 1.5 | F30: 3.75 | G30: 0.2 | H30: 0.4 | I30: 0.4 | J30: 1
B31: 5. Documentation | C31: 0.5 | D31: 1 | E31: 1.5 | F31: 3 | G31: 0.1666666667 | H31: 0.3333333333 | I31: 0.5 | J31: 1
B32: Total Labor Hours | C32: =SUM(C23:C31) -> 4.25 | D32: =SUM(D23:D31) -> 8.75 | E32: =SUM(E23:E31) -> 10.5 | F32: 23.5 | G32: 0.1808510638 | H32: 0.3723404255 | I32: 0.4468085106 | J32: 1
A34: Number of labor hours per average ramp terminal intersection: | D34: Engineer/ | H34: Engineer/
C35: Manager | D35: Planner | E35: Technician | F35: Total | G35: Manager | H35: Planner | I35: Technician | J35: Total
A36: Project Task | C36: Hours | D36: Hours | E36: Hours | F36: Hours | G36: % of total | H36: % of total | I36: % of total | J36: Percent
B37: 1. Develop workplan, analysis plan, and project management | C37: 0.75 | D37: 1 | F37: =SUM(C37:E37) -> 1.75 | G37: =C37/F37 -> 0.4285714286 | H37: =D37/F37 -> 0.5714285714 | I37: =E37/F37 -> 0 | J37: =SUM(G37:I37) -> 1
B38: 2. Data Collection and Processing (compiling, gathering and organizing data) | C38: 0.25 | D38: 1 | E38: 1.5 | F38: =SUM(C38:E38) -> 2.75 | G38: =C38/F38 -> 0.09090909091 | H38: =D38/F38 -> 0.3636363636 | I38: =E38/F38 -> 0.5454545455 | J38: =SUM(G38:I38) -> 1
B39: 3. Existing Conditions Analysis | C39: 0.5 | D39: 1.25 | E39: 2 | F39: =SUM(C39:E39) -> 3.75 | G39: =C39/F39 -> 0.1333333333 | H39: =D39/F39 -> 0.3333333333 | I39: =E39/F39 -> 0.5333333333 | J39: =SUM(G39:I39) -> 1
B40: 4a.Alternatives Evaluation (CMFs) - Research, select and approval of apporpriate CMFs | C40: 0.5 | D40: 1 | E40: 1 | F40: =SUM(C40:E40) -> 2.5 | G40: =C40/F40 -> 0.2 | H40: =D40/F40 -> 0.4 | I40: =E40/F40 -> 0.4 | J40: =SUM(G40:I40) -> 1
B41: 4a. Alternatives Evaluation (CMFs) - Apply CMFs and evaluate outcomes | C41: 0.5 | D41: 1 | E41: 1.5 | F41: 3 | G41: 0.1666666667 | H41: 0.3333333333 | I41: 0.5 | J41: 1
B42: 4b. Alternatives Evaluation (Predictive) - Study area segmentation | F42: 0
B43: 4b. Alternatives Evaluation (Predictive) - Identify and Apply SPFs, CMFs and Local Calibration Factors | C43: 0.5 | D43: 1 | E43: 1.5 | F43: 3 | G43: 0.1666666667 | H43: 0.3333333333 | I43: 0.5 | J43: 1
B44: 4b. Alternatives Evaluation (Predictive) - Evaluate Results | C44: 0.75 | D44: 1.5 | E44: 1.5 | F44: 3.75 | G44: 0.2 | H44: 0.4 | I44: 0.4 | J44: 1
B45: 5. Documentation | C45: 0.5 | D45: 1 | E45: 1.5 | F45: 3 | G45: 0.1666666667 | H45: 0.3333333333 | I45: 0.5 | J45: 1
B46: Total Labor Hours | C46: =SUM(C37:C45) -> 4.25 | D46: =SUM(D37:D45) -> 8.75 | E46: =SUM(E37:E45) -> 10.5 | F46: 23.5 | G46: 0.1808510638 | H46: 0.3723404255 | I46: 0.4468085106 | J46: 1
A48: Number of labor hours per average roadway/freeway segment: | D48: Engineer/ | H48: Engineer/
C49: Manager | D49: Planner | E49: Technician | F49: Total | G49: Manager | H49: Planner | I49: Technician | J49: Total
A50: Project Task | C50: Hours | D50: Hours | E50: Hours | F50: Hours | G50: % of total | H50: % of total | I50: % of total | J50: Percent
B51: 1. Develop workplan, analysis plan, and project management | C51: 0.75 | D51: 1 | F51: =SUM(C51:E51) -> 1.75 | G51: =C51/F51 -> 0.4285714286 | H51: =D51/F51 -> 0.5714285714 | I51: =E51/F51 -> 0 | J51: =SUM(G51:I51) -> 1
B52: 2. Data Collection and Processing (compiling, gathering and organizing data) | C52: 0.25 | D52: 1.5 | E52: 2 | F52: =SUM(C52:E52) -> 3.75 | G52: =C52/F52 -> 0.06666666667 | H52: =D52/F52 -> 0.4 | I52: =E52/F52 -> 0.5333333333 | J52: =SUM(G52:I52) -> 1
B53: 3. Existing Conditions Analysis | C53: 0.5 | D53: 1.25 | E53: 2 | F53: =SUM(C53:E53) -> 3.75 | G53: =C53/F53 -> 0.1333333333 | H53: =D53/F53 -> 0.3333333333 | I53: =E53/F53 -> 0.5333333333 | J53: =SUM(G53:I53) -> 1
B54: 4a.Alternatives Evaluation (CMFs) - Research, select and approval of apporpriate CMFs | C54: 0.5 | D54: 1 | E54: 1 | F54: =SUM(C54:E54) -> 2.5 | G54: =C54/F54 -> 0.2 | H54: =D54/F54 -> 0.4 | I54: =E54/F54 -> 0.4 | J54: =SUM(G54:I54) -> 1
B55: 4a. Alternatives Evaluation (CMFs) - Apply CMFs and evaluate outcomes | C55: 0.5 | D55: 1 | E55: 1.5 | F55: 3 | G55: 0.1666666667 | H55: 0.3333333333 | I55: 0.5 | J55: 1
B56: 4b. Alternatives Evaluation (Predictive) - Study area segmentation | C56: 1 | D56: 2 | E56: 2.5 | F56: 5.5 | G56: 0.1818181818 | H56: 0.3636363636 | I56: 0.4545454545 | J56: 1
B57: 4b. Alternatives Evaluation (Predictive) - Identify and Apply SPFs, CMFs and Local Calibration Factors | C57: 0.5 | D57: 1 | E57: 1.5 | F57: 3 | G57: 0.1666666667 | H57: 0.3333333333 | I57: 0.5 | J57: 1
B58: 4b. Alternatives Evaluation (Predictive) - Evaluate Results | C58: 0.75 | D58: 1.5 | E58: 1.5 | F58: 3.75 | G58: 0.2 | H58: 0.4 | I58: 0.4 | J58: 1
B59: 5. Documentation | C59: 0.5 | D59: 1 | E59: 1.5 | F59: 3 | G59: 0.1666666667 | H59: 0.3333333333 | I59: 0.5 | J59: 1
B60: Total Labor Hours | C60: =SUM(C51:C59) -> 5.25 | D60: =SUM(D51:D59) -> 11.25 | E60: =SUM(E51:E59) -> 13.5 | F60: 30 | G60: 0.175 | H60: 0.375 | I60: 0.45 | J60: 1
A62: Number of labor hours per average ramp segment: | D62: Engineer/ | H62: Engineer/
C63: Manager | D63: Planner | E63: Technician | F63: Total | G63: Manager | H63: Planner | I63: Technician | J63: Total
A64: Project Task | C64: Hours | D64: Hours | E64: Hours | F64: Hours | G64: % of total | H64: % of total | I64: % of total | J64: Percent
B65: 1. Develop workplan, analysis plan, and project management | C65: 0.75 | D65: 1 | F65: =SUM(C65:E65) -> 1.75 | G65: =C65/F65 -> 0.4285714286 | H65: =D65/F65 -> 0.5714285714 | I65: =E65/F65 -> 0 | J65: =SUM(G65:I65) -> 1
B66: 2. Data Collection and Processing (compiling, gathering and organizing data) | C66: 0.25 | D66: 1 | E66: 1.25 | F66: =SUM(C66:E66) -> 2.5 | G66: =C66/F66 -> 0.1 | H66: =D66/F66 -> 0.4 | I66: =E66/F66 -> 0.5 | J66: =SUM(G66:I66) -> 1
B67: 3. Existing Conditions Analysis | C67: 0.5 | D67: 1.25 | E67: 2 | F67: =SUM(C67:E67) -> 3.75 | G67: =C67/F67 -> 0.1333333333 | H67: =D67/F67 -> 0.3333333333 | I67: =E67/F67 -> 0.5333333333 | J67: =SUM(G67:I67) -> 1
B68: 4a.Alternatives Evaluation (CMFs) - Research, select and approval of apporpriate CMFs | C68: 0.5 | D68: 1 | E68: 1 | F68: =SUM(C68:E68) -> 2.5 | G68: =C68/F68 -> 0.2 | H68: =D68/F68 -> 0.4 | I68: =E68/F68 -> 0.4 | J68: =SUM(G68:I68) -> 1
B69: 4a. Alternatives Evaluation (CMFs) - Apply CMFs and evaluate outcomes | C69: 0.5 | D69: 1 | E69: 1.5 | F69: 3 | G69: 0.1666666667 | H69: 0.3333333333 | I69: 0.5 | J69: 1
B70: 4b. Alternatives Evaluation (Predictive) - Study area segmentation | C70: 0.5 | D70: 1.25 | E70: 1.5 | F70: 3.25 | G70: 0.1538461538 | H70: 0.3846153846 | I70: 0.4615384615 | J70: 1
B71: 4b. Alternatives Evaluation (Predictive) - Identify and Apply SPFs, CMFs and Local Calibration Factors | C71: 0.25 | D71: 0.75 | E71: 1 | F71: 2 | G71: 0.125 | H71: 0.375 | I71: 0.5 | J71: 1
B72: 4b. Alternatives Evaluation (Predictive) - Evaluate Results | C72: 0.75 | D72: 1.5 | E72: 1.5 | F72: 3.75 | G72: 0.2 | H72: 0.4 | I72: 0.4 | J72: 1
B73: 5. Documentation | C73: 0.5 | D73: 1 | E73: 1.5 | F73: 3 | G73: 0.1666666667 | H73: 0.3333333333 | I73: 0.5 | J73: 1
B74: Total Labor Hours | C74: =SUM(C65:C73) -> 4.5 | D74: =SUM(D65:D73) -> 9.75 | E74: =SUM(E65:E73) -> 11.25 | F74: 25.5 | G74: 0.1764705882 | H74: 0.3823529412 | I74: 0.4411764706 | J74: 1
A76: =B13 -> Availability of Baseline/No-Build Data Related to Crash and Roadway (Good, Sufficient, Limited):
B77: Good | C77: 0.8 | D77: for Tasks 2, 3, 4a, 4b
B78: Sufficient | C78: 1.2 | D78: for Tasks 2, 3, 4a, 4b
B79: Limited | C79: 1.4 | D79: for Tasks 2, 3, 4a, 4b
A81: =B15 -> Complexity of Geometry (Simple, Complex):
B82: Simple | C82: 1 | D82: for all Tasks 1, 2, 3, 4
B83: Complex | C83: 1.2 | D83: for all Tasks 1, 2, 3, 4
A85: =B17 -> Project Team Experience (Some, Considerable):
B86: Some | C86: 1.2 | D86: for all Tasks
B87: Considerable | C87: 0.9 | D87: for all Tasks
A89: Range
A90: Determine the range for the results on the final output table | C90: 0.1 | D90: To determine lower/upper bounds of project activities
A92: CALCULATIONS
A93: Total number of labor hours for intersections: | D93: Engineer/
C94: Manager | D94: Planner | E94: Technician | F94: Total
A95: Project Task | C95: Hours | D95: Hours | E95: Hours | F95: Hours
B96: 1. Develop workplan, analysis plan, and project management | C96: =$C$9*C23 -> 3 | D96: 4 | E96: 0 | F96: =SUM(C96:E96) -> 7
B97: 2. Data Collection and Processing (compiling, gathering and organizing data) | C97: 1 | D97: 4 | E97: 6 | F97: =SUM(C97:E97) -> 11
B98: 3. Existing Conditions Analysis | C98: 2 | D98: 5 | E98: 8 | F98: =SUM(C98:E98) -> 15
B99: 4a.Alternatives Evaluation (CMFs) - Research, select and approval of apporpriate CMFs | C99: 2 | D99: 4 | E99: 4 | F99: =SUM(C99:E99) -> 10
B100: 4a. Alternatives Evaluation (CMFs) - Apply CMFs and evaluate outcomes | C100: 2 | D100: 4 | E100: 6 | F100: 12
B101: 4b. Alternatives Evaluation (Predictive) - Study area segmentation | C101: 0 | D101: 0 | E101: 0 | F101: 0
B102: 4b. Alternatives Evaluation (Predictive) - Identify and Apply SPFs, CMFs and Local Calibration Factors | C102: 2 | D102: 4 | E102: 6 | F102: 12
B103: 4b. Alternatives Evaluation (Predictive) - Evaluate Results | C103: 3 | D103: 6 | E103: 6 | F103: 15
B104: 5. Documentation | C104: 2 | D104: 4 | E104: 6 | F104: 12
B105: Total Labor Hours | C105: =SUM(C96:C104) -> 17 | D105: =SUM(D96:D104) -> 35 | E105: =SUM(E96:E104) -> 42 | F105: 94
A107: Total number of labor hours for ramp terminal intersections: | D107: Engineer/
C108: Manager | D108: Planner | E108: Technician | F108: Total
A109: Project Task | C109: Hours | D109: Hours | E109: Hours | F109: Hours
B110: 1. Develop workplan, analysis plan, and project management | C110: =$C$10*C37 -> 1.5 | D110: 2 | E110: 0 | F110: =SUM(C110:E110) -> 3.5
B111: 2. Data Collection and Processing (compiling, gathering and organizing data) | C111: 0.5 | D111: 2 | E111: 3 | F111: =SUM(C111:E111) -> 5.5
B112: 3. Existing Conditions Analysis | C112: 1 | D112: 2.5 | E112: 4 | F112: =SUM(C112:E112) -> 7.5
B113: 4a.Alternatives Evaluation (CMFs) - Research, select and approval of apporpriate CMFs | C113: 1 | D113: 2 | E113: 2 | F113: =SUM(C113:E113) -> 5
B114: 4a. Alternatives Evaluation (CMFs) - Apply CMFs and evaluate outcomes | C114: 1 | D114: 2 | E114: 3 | F114: 6
B115: 4b. Alternatives Evaluation (Predictive) - Study area segmentation | C115: 0 | D115: 0 | E115: 0 | F115: 0
B116: 4b. Alternatives Evaluation (Predictive) - Identify and Apply SPFs, CMFs and Local Calibration Factors | C116: 1 | D116: 2 | E116: 3 | F116: 6
B117: 4b. Alternatives Evaluation (Predictive) - Evaluate Results | C117: 1.5 | D117: 3 | E117: 3 | F117: 7.5
B118: 5. Documentation | C118: 1 | D118: 2 | E118: 3 | F118: 6
B119: Total Labor Hours | C119: =SUM(C110:C118) -> 8.5 | D119: =SUM(D110:D118) -> 17.5 | E119: =SUM(E110:E118) -> 21 | F119: 47
A121: Total number of labor hours for roadway/freeway segments: | D121: Engineer/
C122: Manager | D122: Planner | E122: Technician | F122: Total
A123: Project Task | C123: Hours | D123: Hours | E123: Hours | F123: Hours
B124: 1. Develop workplan, analysis plan, and project management | C124: =$C$11*C51 -> 3 | D124: 4 | E124: 0 | F124: =SUM(C124:E124) -> 7
B125: 2. Data Collection and Processing (compiling, gathering and organizing data) | C125: 1 | D125: 6 | E125: 8 | F125: =SUM(C125:E125) -> 15
B126: 3. Existing Conditions Analysis | C126: 2 | D126: 5 | E126: 8 | F126: =SUM(C126:E126) -> 15
B127: 4a.Alternatives Evaluation (CMFs) - Research, select and approval of apporpriate CMFs | C127: 2 | D127: 4 | E127: 4 | F127: =SUM(C127:E127) -> 10
B128: 4a. Alternatives Evaluation (CMFs) - Apply CMFs and evaluate outcomes | C128: 2 | D128: 4 | E128: 6 | F128: 12
B129: 4b. Alternatives Evaluation (Predictive) - Study area segmentation | C129: 4 | D129: 8 | E129: 10 | F129: 22
B130: 4b. Alternatives Evaluation (Predictive) - Identify and Apply SPFs, CMFs and Local Calibration Factors | C130: 2 | D130: 4 | E130: 6 | F130: 12
B131: 4b. Alternatives Evaluation (Predictive) - Evaluate Results | C131: 3 | D131: 6 | E131: 6 | F131: 15
B132: 5. Documentation | C132: 2 | D132: 4 | E132: 6 | F132: 12
B133: Total Labor Hours | C133: =SUM(C124:C132) -> 21 | D133: =SUM(D124:D132) -> 45 | E133: =SUM(E124:E132) -> 54 | F133: 120
A135: Total number of labor hours for ramp segments: | D135: Engineer/
C136: Manager | D136: Planner | E136: Technician | F136: Total
A137: Project Task | C137: Hours | D137: Hours | E137: Hours | F137: Hours
B138: 1. Develop workplan, analysis plan, and project management | C138: =$C$12*C65 -> 1.5 | D138: 2 | E138: 0 | F138: =SUM(C138:E138) -> 3.5
B139: 2. Data Collection and Processing (compiling, gathering and organizing data) | C139: 0.5 | D139: 2 | E139: 2.5 | F139: =SUM(C139:E139) -> 5
B140: 3. Existing Conditions Analysis | C140: 1 | D140: 2.5 | E140: 4 | F140: =SUM(C140:E140) -> 7.5
B141: 4a.Alternatives Evaluation (CMFs) - Research, select and approval of apporpriate CMFs | C141: 1 | D141: 2 | E141: 2 | F141: =SUM(C141:E141) -> 5
B142: 4a. Alternatives Evaluation (CMFs) - Apply CMFs and evaluate outcomes | C142: 1 | D142: 2 | E142: 3 | F142: 6
B143: 4b. Alternatives Evaluation (Predictive) - Study area segmentation | C143: 1 | D143: 2.5 | E143: 3 | F143: 6.5
B144: 4b. Alternatives Evaluation (Predictive) - Identify and Apply SPFs, CMFs and Local Calibration Factors | C144: 0.5 | D144: 1.5 | E144: 2 | F144: 4
B145: 4b. Alternatives Evaluation (Predictive) - Evaluate Results | C145: 1.5 | D145: 3 | E145: 3 | F145: 7.5
B146: 5. Documentation | C146: 1 | D146: 2 | E146: 3 | F146: 6
B147: Total Labor Hours | C147: =SUM(C138:C146) -> 9 | D147: =SUM(D138:D146) -> 19.5 | E147: =SUM(E138:E146) -> 22.5 | F147: 51
A149: Total number of labor hours (Intersections + Ramp Terminal Intersections + Roadway/Freeway Segments + Ramp Segments): | D149: Engineer/
C150: Manager | D150: Planner | E150: Technician | F150: Total
A151: Project Task | C151: Hours | D151: Hours | E151: Hours | F151: Hours
B152: 1. Develop workplan, analysis plan, and project management | C152: =C96+C110+C124+C138 -> 9 | D152: =D96+D110+D124+D138 -> 12 | E152: 0 | F152: =SUM(C152:E152) -> 21
B153: 2. Data Collection and Processing (compiling, gathering and organizing data) | C153: =C97+C111+C125+C139 -> 3 | D153: 14 | E153: 19.5 | F153: =SUM(C153:E153) -> 36.5
B154: 3. Existing Conditions Analysis | C154: =C98+C112+C126+C140 -> 6 | D154: 15 | E154: 24 | F154: =SUM(C154:E154) -> 45
B155: 4a.Alternatives Evaluation (CMFs) - Research, select and approval of apporpriate CMFs | C155: =C99+C113+C127+C141 -> 6 | D155: 12 | E155: 12 | F155: =SUM(C155:E155) -> 30
B156: 4a. Alternatives Evaluation (CMFs) - Apply CMFs and evaluate outcomes | C156: =C100+C114+C128+C142 -> 6 | D156: 12 | E156: 18 | F156: 36
B157: 4b. Alternatives Evaluation (Predictive) - Study area segmentation | C157: =C101+C115+C129+C143 -> 5 | D157: 10.5 | E157: 13 | F157: 28.5
B158: 4b. Alternatives Evaluation (Predictive) - Identify and Apply SPFs, CMFs and Local Calibration Factors | C158: =C102+C116+C130+C144 -> 5.5 | D158: 11.5 | E158: 17 | F158: 34
B159: 4b. Alternatives Evaluation (Predictive) - Evaluate Results | C159: =C103+C117+C131+C145 -> 9 | D159: 18 | E159: 18 | F159: 45
B160: 5. Documentation | C160: =C104+C118+C132+C146 -> 6 | D160: 12 | E160: 18 | F160: 36
B161: Total Labor Hours | C161: =SUM(C152:C160) -> 55.5 | D161: =SUM(D152:D160) -> 117 | E161: =SUM(E152:E160) -> 139.5 | F161: 312
A163: Adjustment for Availability of Baseline/No-Build Data Related to Crash and Roadway: | D163: Engineer/
C164: Manager | D164: Planner | E164: Technician | F164: Total
A165: Project Task | C165: Hours | D165: Hours | E165: Hours | F165: Hours
B166: 2. Data Collection and Processing (compiling, gathering and organizing data) | C166: =(VLOOKUP($C$13,$B$77:$C$79,2,FALSE)-1)*C153 -> 0.6 | D166: =(VLOOKUP($C$13,$B$77:$C$79,2,FALSE)-1)*D153 -> 2.8 | E166: 3.9 | F166: =SUM(C166:E166) -> 7.3
B167: =B25 -> 3. Existing Conditions Analysis | C167: =(VLOOKUP($C$13,$B$77:$C$79,2,FALSE)-1)*C154 -> 1.2 | D167: =(VLOOKUP($C$13,$B$77:$C$79,2,FALSE)-1)*D154 -> 3 | E167: 4.8 | F167: =SUM(C167:E167) -> 9
B168: 4a.Alternatives Evaluation (CMFs) - Research, select and approval of apporpriate CMFs | C168: =(VLOOKUP($C$13,$B$77:$C$79,2,FALSE)-1)*C155 -> 1.2 | D168: =(VLOOKUP($C$13,$B$77:$C$79,2,FALSE)-1)*D155 -> 2.4 | E168: 2.4 | F168: =SUM(C168:E168) -> 6
B169: 4b. Alternatives Evaluation (Predictive) - Study area segmentation | C169: =(VLOOKUP($C$13,$B$77:$C$79,2,FALSE)-1)*C157 -> 1 | D169: =(VLOOKUP($C$13,$B$77:$C$79,2,FALSE)-1)*D157 -> 2.1 | E169: 2.6 | F169: 5.7
A171: Adjustment for Complexity of Geometry: | D171: Engineer/
C172: Manager | D172: Planner | E172: Technician | F172: Total
A173: Project Task | C173: Hours | D173: Hours | E173: Hours | F173: Hours
B174: 1. Develop workplan, analysis plan, and project management | C174: =(VLOOKUP($C$15,$B$82:$C$83,2,FALSE)-1)*C152 -> 0 | D174: =(VLOOKUP($C$15,$B$82:$C$83,2,FALSE)-1)*D152 -> 0 | E174: 0 | F174: =SUM(C174:E174) -> 0
B175: 2. Data Collection and Processing (compiling, gathering and organizing data) | C175: =(VLOOKUP($C$15,$B$82:$C$83,2,FALSE)-1)*C153 -> 0 | D175: 0 | E175: 0 | F175: =SUM(C175:E175) -> 0
B176: 3. Existing Conditions Analysis | C176: =(VLOOKUP($C$15,$B$82:$C$83,2,FALSE)-1)*C154 -> 0 | D176: =(VLOOKUP($C$15,$B$82:$C$83,2,FALSE)-1)*D154 -> 0 | E176: 0 | F176: =SUM(C176:E176) -> 0
B177: 4a.Alternatives Evaluation (CMFs) - Research, select and approval of apporpriate CMFs | C177: 0 | D177: =(VLOOKUP($C$15,$B$82:$C$83,2,FALSE)-1)*D155 -> 0 | E177: 0 | F177: 0
B178: 4a. Alternatives Evaluation (CMFs) - Apply CMFs and evaluate outcomes | C178: 0 | D178: 0 | E178: 0 | F178: 0
B179: 4b. Alternatives Evaluation (Predictive) - Study area segmentation | C179: 0 | D179: 0 | E179: 0 | F179: 0
B180: 4b. Alternatives Evaluation (Predictive) - Identify and Apply SPFs, CMFs and Local Calibration Factors | C180: 0 | D180: 0 | E180: 0 | F180: 0
B181: 4b. Alternatives Evaluation (Predictive) - Evaluate Results | C181: 0 | D181: 0 | E181: 0 | F181: 0
A183: Adjustment for Analyst Experience: | D183: Engineer/
C184: Manager | D184: Planner | E184: Technician | F184: Total
A185: Project Task | C185: Hours | D185: Hours | E185: Hours | F185: Hours
B186: 1. Develop workplan, analysis plan, and project management | C186: =(VLOOKUP($C$17,$B$86:$C$87,2,FALSE)-1)*C152 -> 1.8 | D186: 2.4 | E186: 0 | F186: =SUM(C186:E186) -> 4.2
B187: 2. Data Collection and Processing (compiling, gathering and organizing data) | C187: 0.6 | D187: 2.8 | E187: 3.9 | F187: =SUM(C187:E187) -> 7.3
B188: 3. Existing Conditions Analysis | C188: 1.2 | D188: 3 | E188: 4.8 | F188: =SUM(C188:E188) -> 9
B189: 4a.Alternatives Evaluation (CMFs) - Research, select and approval of apporpriate CMFs | C189: 1.2 | D189: 2.4 | E189: 2.4 | F189: =SUM(C189:E189) -> 6
B190: 4a. Alternatives Evaluation (CMFs) - Apply CMFs and evaluate outcomes | C190: 1.2 | D190: 2.4 | E190: 3.6 | F190: 7.2
B191: 4b. Alternatives Evaluation (Predictive) - Study area segmentation | C191: 1 | D191: 2.1 | E191: 2.6 | F191: 5.7
B192: 4b. Alternatives Evaluation (Predictive) - Identify and Apply SPFs, CMFs and Local Calibration Factors | C192: 1.1 | D192: 2.3 | E192: 3.4 | F192: 6.8
B193: 4b. Alternatives Evaluation (Predictive) - Evaluate Results | C193: 1.8 | D193: 3.6 | E193: 3.6 | F193: 9
B194: 5. Documentation | C194: 1.2 | D194: 2.4 | E194: 3.6 | F194: 7.2
A196: Project specific total number of labor hours | D196: Engineer/
C197: Manager | D197: Planner | E197: Technician | F197: Total
A198: Project Task | C198: Hours | D198: Hours | E198: Hours | F198: Hours
B199: 1. Develop workplan, analysis plan, and project management | C199: =C152+C174+C186 -> 10.8 | D199: 14.4 | E199: 0 | F199: =SUM(C199:E199) -> 25.2 | G199: =F199*(1-$C$90) -> 22.68 | H199: =F199*(1+$C$90) -> 27.72
B200: 2. Data Collection and Processing (compiling, gathering and organizing data) | C200: 3.6 | D200: 16.8 | E200: 23.4 | F200: =SUM(C200:E200) -> 43.8 | G200: =F200*(1-$C$90) -> 39.42 | H200: =F200*(1+$C$90) -> 48.18
B201: 3. Existing Conditions Analysis | C201: =C154+C167+C188 -> 8.4 | D201: =D154+D167+D188 -> 21 | E201: =E154+E167+E188 -> 33.6 | F201: =SUM(C201:E201) -> 63 | G201: 56.7 | H201: 69.3
B202: 4a.Alternatives Evaluation (CMFs) - Research, select and approval of apporpriate CMFs | C202: =IF($C$16="CMFs",C155+C177+C189,0)*$C$14 -> 21.6 | D202: =IF($C$16="CMFs",D155+D177+D189,0)*$C$14 -> 43.2 | E202: 43.2 | F202: =SUM(C202:E202) -> 108 | G202: 97.2 | H202: 118.8
B203: 4a. Alternatives Evaluation (CMFs) - Apply CMFs and evaluate outcomes | C203: =IF($C$16="CMFs",C156+C178+C190,0)*$C$14 -> 21.6 | D203: 43.2 | E203: 64.8 | F203: 129.6 | G203: 116.64 | H203: 142.56
B204: 4b. Alternatives Evaluation (Predictive) - Study area segmentation | C204: =IF($C$16="Predictive Method",C157+C179+C191,0)*$C$14 -> 0 | D204: =IF($C$16="Predictive Method",D157+D179+D191,0)*$C$14 -> 0 | E204: 0 | F204: =SUM(C204:E204) -> 0 | G204: 0 | H204: 0
B205: 4b. Alternatives Evaluation (Predictive) - Identify and Apply SPFs, CMFs and Local Calibration Factors | C205: =IF($C$16="Predictive Method",C158+C180+C192,0)*$C$14 -> 0 | D205: 0 | E205: 0 | F205: 0 | G205: 0 | H205: 0
B206: 4b. Alternatives Evaluation (Predictive) - Evaluate Results | C206: =IF($C$16="Predictive Method",C159+C181+C193,0)*$C$14 -> 0 | D206: 0 | E206: 0 | F206: 0 | G206: 0 | H206: 0
B207: 5. Documentation | C207: =C160+C194 -> 7.2 | D207: =D160+D194 -> 14.4 | E207: =E160+E194 -> 21.6 | F207: 43.2 | G207: 38.88 | H207: 47.52
B208: Total Labor Hours | C208: =SUM(C199:C207) -> 73.2 | D208: =SUM(D199:D207) -> 153 | E208: =SUM(E199:E207) -> 186.6 | F208: 412.8 | G208: 371.52 | H208: 454.08

Sheet Output
B1: =Input!B1 -> Safety Analysis Costing Tool | F1: Developed for :
A3: OUTPUT REPORT
A4: Estimate of Labor Hours Required to Complete the Analysis of:
B5: =Input!$C$10 -> Test
A7: Task specific number of labor hours
D8: Engineer/
C9: Manager | D9: Planner | E9: Technician | F9: Total | G9: Lower | H9: Upper
C10: Hours | D10: Hours | E10: Hours | F10: Hours | G10: Bound | H10: Bound
B11: 1 - Develop workplan, analysis plan, and project management | C11: =Calculations!C199 -> 10.8 | D11: =Calculations!D199 -> 14.4 | E11: =Calculations!E199 -> 0 | F11: =Calculations!F199 -> 25.2 | G11: =Calculations!G199 -> 22.68 | H11: =Calculations!H199 -> 27.72
B12: 2 - Data collection and processing | C12: =Calculations!C200 -> 3.6 | D12: =Calculations!D200 -> 16.8 | E12: =Calculations!E200 -> 23.4 | F12: =Calculations!F200 -> 43.8 | G12: =Calculations!G200 -> 39.42 | H12: =Calculations!H200 -> 48.18
B13: 3 - Analysis - Existing Conditions | C13: =Calculations!C201 -> 8.4 | D13: =Calculations!D201 -> 21 | E13: =Calculations!E201 -> 33.6 | F13: =Calculations!F201 -> 63 | G13: =Calculations!G201 -> 56.7 | H13: =Calculations!H201 -> 69.3
B14: 4 - Analysis - Alternatives | C14: =SUM(Calculations!C202:C206) -> 43.2 | D14: =SUM(Calculations!D202:D206) -> 86.4 | E14: =SUM(Calculations!E202:E206) -> 108 | F14: =SUM(Calculations!F202:F206) -> 237.6 | G14: =SUM(Calculations!G202:G206) -> 213.84 | H14: =SUM(Calculations!H202:H206) -> 261.36
B15: 5 - Documentation | C15: =Calculations!C207 -> 7.2 | D15: =Calculations!D207 -> 14.4 | E15: =Calculations!E207 -> 21.6 | F15: =Calculations!F207 -> 43.2 | G15: =Calculations!G207 -> 38.88 | H15: =Calculations!H207 -> 47.52
B16: Total Labor Hours | C16: =SUM(C11:C15) -> 73.2 | D16: =SUM(D11:D15) -> 153 | E16: 186.6 | F16: 412.8 | G16: 371.52 | H16: 454.08
